bitfinex/quotes_ETHUSD_20240701
["timestamp","ask_amount","ask_price","bid_price","bid_amount"]
[1719859647616,2.58757007,3479.1,3478.6,0.05748756]
[1719859647899,0.03866096,3479.1,3478.6,0.05748756]
[1719859648276,0.72,3479.5,3478.6,0.05748756]
[1719859648602,2.5875956,3479.4,3478.6,0.05748756]
[1719859648796,2.62625656,3479.3,3478.6,0.05748756]
[1719859649005,2.5875956,3479.2,3478.6,0.05748756]
[1719859649212,2.5875956,3479.1,3478.6,0.05748756]
[1719859649510,0.03866096,3479.1,3478.6,0.05748756]
[1719859649930,1.08426,3479.5,3478.6,0.05748756]
[1719859650083,0.03866096,3479.0,3478.6,0.05748756]
[1719859650279,0.72,3479.3,3478.3,6.72]
[1719859650591,2.58764812,3479.2,3478.3,6.72]
[1719859650799,2.3747,3479.0,3478.3,6.0]
[1719859651120,3.87974903,3478.9,3478.3,6.0]
[1719859651282,2.09020749,3478.8,3478.3,6.0]
[1719859651614,0.03866096,3478.8,3478.3,6.0]
[1719859652197,0.03866096,3478.8,3478.3,3.0]
[1719859652415,2.58798472,3478.7,3478.3,3.0]
[1719859652622,0.33466457,3478.6,3478.3,3.0]
[1719859652833,0.49770038,3478.6,3478.3,3.0]
[1719859653037,0.49770038,3478.8,3478.3,3.0]
[1719859653254,0.03866096,3478.5,3478.3,3.0]
[1719859653401,0.72,3478.9,3478.3,3.0]
[1719859653595,2.62669459,3478.8,3478.3,3.0]
[1719859653838,3.16017309,3478.7,3478.3,3.0]
[1719859654008,0.57213946,3478.7,3478.3,3.0]
[1719859654413,0.03866096,3478.6,3478.3,3.0]
[1719859654865,0.03866096,3478.6,3477.8,6.0]
[1719859655045,2.58808498,3478.5,3477.8,6.0]
[1719859655364,2.58808498,3478.4,3477.8,6.0]
[1719859655514,0.3308085,3478.5,3477.8,6.0]
[1719859655720,0.03866096,3478.3,3477.7,3.72]
[1719859655940,0.72,3478.7,3477.7,3.72]
[1719859656255,2.62692605,3478.6,3477.7,3.72]
[1719859656549,2.58825399,3478.5,3478.1,3.0]
[1719859656718,0.75866096,3478.6,3478.1,3.0]
[1719859656918,0.03841902,3478.4,3478.1,3.0]
[1719859657141,0.72,3478.6,3478.1,3.0]
[1719859657342,0.03841902,3478.3,3478.1,3.0]
[1719859657515,0.72,3478.6,3478.1,3.0]
[1719859657717,0.03841902,3478.2,3478.1,3.0]
[1719859657915,0.72,3478.6,3478.1,3.0]
[1719859658160,0.03841902,3478.2,3478.1,3.0]
[1719859658367,0.72,3478.8,3478.1,3.0]
[1719859658550,2.58820176,3478.7,3478.1,3.0]
[1719859658734,2.58820176,3478.6,3478.1,3.0]
[1719859658933,0.03841048,3478.7,3478.1,3.0]
[1719859659135,2.58820206,3478.6,3478.1,3.0]
[1719859659347,0.03841048,3478.6,3478.1,3.0]
[1719859659585,0.03841048,3478.6,3478.1,3.77749875]
[1719859659864,2.3747,3479.0,3478.1,4.15524863]
[1719859660032,2.58797321,3478.9,3478.1,3.77749875]
[1719859660226,2.58797321,3478.8,3478.1,3.77749875]
[1719859660419,0.4976873,3478.7,3478.1,3.77749875]
[1719859660620,2.3747,3479.0,3478.1,3.77749875]
[1719859660817,2.58796019,3478.9,3478.1,3.77749875]
[1719859661019,2.09027554,3478.8,3478.1,3.77749875]
[1719859661221,0.49768465,3478.7,3478.1,3.77749875]
[1719859661645,0.03841192,3478.6,3478.1,3.77749875]
[1719859661834,2.3747,3479.0,3478.1,3.77749875]
[1719859662049,2.58792962,3478.9,3478.1,3.77749875]
[1719859662252,0.49767914,3478.8,3478.1,3.77749875]
[1719859662480,0.49767914,3478.7,3478.2,2.3383]
[1719859662777,0.03844608,3478.6,3478.3,0.05749279]
[1719859662981,0.72,3479.1,3478.3,0.05749279]
[1719859663173,2.62625906,3479.0,3478.3,0.05749279]
[1719859663498,2.58781298,3478.9,3478.3,0.05749279]
[1719859663666,0.49765595,3478.9,3478.3,0.05749279]
[1719859663854,0.49765595,3478.8,3478.3,0.05749279]
[1719859664047,0.03844608,3478.8,3478.3,0.05749279]
[1719859664252,0.49765595,3478.7,3478.3,0.05749279]
[1719859664692,0.03844608,3478.6,3478.3,0.05749279]
[1719859665149,0.72,3479.0,3478.3,0.05749279]
[1719859665352,2.62629546,3478.9,3478.3,0.05749279]
[1719859665547,1.21766094,3478.8,3478.3,0.05749279]
[1719859665748,0.49766094,3478.7,3478.3,0.05749279]
[1719859665990,0.03844608,3478.6,3478.3,0.05749279]
[1719859666193,0.72,3478.8,3478.3,0.05749279]
[1719859666380,0.53612578,3478.7,3478.3,0.05749279]
[1719859666587,0.4976797,3478.6,3478.3,0.05749279]
[1719859666754,0.72,3478.8,3478.3,0.05749279]
[1719859667081,0.49767841,3478.7,3478.3,0.05749279]
[1719859667280,0.49767841,3478.6,3478.3,0.05749279]
[1719859667864,0.49767841,3478.7,3478.3,0.05749279]
[1719859668083,0.49766547,3478.6,3478.5,3.0]
[1719859668279,0.03844608,3478.6,3478.5,3.05748943]
[1719859668466,0.72,3479.1,3478.5,3.05748943]
[1719859668684,2.58780467,3479.0,3478.5,3.05748943]
[1719859668994,0.49765474,3478.9,3478.5,3.05748943]
[1719859669351,0.53612787,3478.8,3478.5,3.0]
[1719859669551,0.49765474,3478.7,3478.5,3.0]
[1719859669993,0.03847313,3478.6,3478.5,3.0]
[1719859670164,0.72,3479.1,3478.5,3.0]
[1719859670371,2.6262582,3479.0,3478.5,3.0]
[1719859670564,0.49765097,3478.9,3478.5,3.0]
[1719859670773,0.49765097,3478.8,3478.5,3.05748844]
[1719859670973,0.03847313,3478.7,3478.5,3.05748844]
[1719859671293,0.72,3479.1,3478.5,3.05748844]
[1719859671492,0.28880124,3481.3,3478.5,3.05748844]
[1719859671493,0.03847313,3478.6,3478.5,4.37102521]
[1719859671693,0.72,3479.5,3478.5,4.37102521]
[1719859671858,2.58750762,3479.4,3478.5,4.37102521]
[1719859672059,3.30750762,3479.3,3478.6,0.49106045]
[1719859672259,2.58750762,3479.2,3478.6,0.49106045]
[1719859672559,0.53609888,3479.1,3478.7,0.05748827]
[1719859672910,0.03850159,3479.1,3478.7,2.32288827]
[1719859673253,0.72,3479.4,3478.7,2.32288827]
[1719859673455,2.58743679,3479.3,3478.7,3.02054847]
[1719859673696,0.49758389,3479.2,3478.7,3.02054847]
[1719859674255,0.49758389,3479.3,3478.7,3.02054847]
[1719859674508,0.49758389,3479.2,3478.7,3.02054847]
[1719859674660,0.53478548,3479.2,3478.7,3.02054847]
[1719859674860,0.49760093,3479.1,3478.5,3.0]
[1719859675064,0.72,3479.0,3478.5,3.0]
[1719859675562,0.72,3479.2,3478.5,3.0]
[1719859675764,2.58757179,3479.1,3478.5,3.0]
[1719859675994,0.03720159,3479.0,3478.5,3.0]
[1719859676200,0.72,3479.2,3478.5,3.0]
[1719859676402,2.5875194,3479.1,3478.5,3.0]
[1719859676575,0.03723148,3479.0,3478.5,3.0]
[1719859676777,0.72,3479.2,3478.5,3.0]
[1719859676993,2.58752024,3479.1,3478.5,3.0]
[1719859677197,0.03723148,3479.0,3478.5,3.0]
[1719859677507,0.72,3479.2,3478.5,3.0]
[1719859677693,2.58752282,3479.1,3478.5,3.0]
[1719859678003,0.03723148,3479.0,3478.5,3.0]
[1719859678171,0.72,3479.2,3478.5,3.0]
[1719859678368,2.58752303,3479.1,3478.5,3.0]
[1719859678594,2.1271582,3479.0,3478.5,3.0]
[1719859678905,0.03723575,3479.0,3478.5,3.0]
[1719859679201,2.433,3479.6,3478.6,0.05749049]
[1719859679374,0.72,3479.4,3478.6,0.05749049]
[1719859679580,2.58750712,3479.3,3478.6,0.05749049]
[1719859679798,2.62474287,3479.2,3478.6,0.05749049]
[1719859679997,2.58750712,3479.1,3478.6,0.05749049]
[1719859680309,2.0899096,3479.0,3478.9,6.1707]
[1719859680468,0.03723575,3479.0,3478.9,6.1707]
[1719859680673,10.5799,3480.0,3478.9,6.1707]
[1719859680972,2.62458088,3479.9,3479.0,0.05748046]
[1719859681215,2.5872996,3479.8,3479.0,0.05748046]
[1719859681391,2.5872996,3479.7,3479.0,0.05748046]
[1719859681568,2.62458088,3479.6,3479.0,0.05748046]
[1719859681768,2.5872996,3479.5,3479.0,0.05748046]
[1719859682070,2.08974199,3479.4,3479.0,0.05748046]
[1719859682269,2.08974199,3479.3,3479.0,0.05748046]
[1719859682473,0.03728128,3479.4,3479.1,1.34281805]
[1719859682818,0.72,3480.0,3479.1,1.34281805]
[1719859682970,2.62441794,3479.9,3479.1,0.72]
[1719859683176,2.58713666,3479.8,3479.1,0.72]
[1719859683409,2.2653,3480.2,3479.2,0.05747932]
[1719859683716,0.72,3480.0,3479.1,0.72]
[1719859683870,2.08961713,3479.9,3479.1,1.624517]
[1719859684070,0.49752788,3479.8,3479.2,0.05747534]
[1719859684267,2.58714501,3479.7,3479.1,1.624517]
[1719859684497,2.08961713,3479.6,3479.1,1.624517]
[1719859684709,0.72,3480.0,3479.1,1.624517]
[1719859685010,2.58712326,3479.9,3479.1,1.624517]
[1719859685172,2.62440454,3479.8,3479.1,1.624517]
[1719859685374,2.58712326,3479.7,3479.1,1.624517]
[1719859685585,2.08959956,3479.6,3479.1,1.624517]
[1719859685817,0.03728128,3479.5,3479.1,1.624517]
[1719859686021,0.72,3480.1,3479.4,2.4952]
[1719859686172,2.58703654,3480.0,3479.4,2.55267532]
[1719859686517,2.62437758,3479.9,3479.4,2.55267532]
[1719859686809,2.08949623,3479.8,3479.4,2.55267532]
[1719859687412,0.03734104,3479.7,3479.4,2.55267532]
[1719859687623,0.72,3480.3,3479.4,2.55267532]
[1719859687773,2.62430622,3480.2,3479.4,2.55267532]
[1719859687973,2.58689122,3480.1,3479.5,0.72]
[1719859688323,2.58689122,3480.0,3479.5,0.72]
[1719859688619,0.037415,3480.0,3479.5,0.72]
[1719859688819,0.55,3480.3,3479.5,0.72]
[1719859688987,2.62428835,3480.2,3479.5,0.72]
[1719859689185,2.58687335,3480.1,3479.5,0.72]
[1719859689402,0.881974,3480.3,3479.5,0.72]
[1719859689714,2.62428003,3480.2,3479.5,0.72]
[1719859689922,2.58686603,3480.1,3479.5,0.72]
[1719859690137,0.037415,3480.2,3479.6,0.05747267]
[1719859690339,3.0834,3480.5,3479.6,0.05747267]
[1719859690635,2.58680262,3480.4,3479.6,0.05747267]
[1719859690793,2.62421336,3480.3,3479.6,0.05747267]
[1719859690991,0.49746204,3480.2,3479.6,0.05747267]
[1719859691217,3.0834,3480.5,3479.6,0.98253083]
[1719859691422,2.62419078,3480.4,3479.6,0.98253083]
[1719859691612,2.58678004,3480.3,3479.6,0.98253083]
[1719859691934,3.0834,3480.5,3479.6,0.98253083]
[1719859692099,0.03741074,3480.2,3479.6,0.98253083]
[1719859692433,0.53487107,3480.1,3479.6,0.92505816]
[1719859692636,0.53487107,3480.1,3479.4,2.4952]
[1719859692637,0.03741074,3480.1,3479.4,3.2152]
[1719859692831,0.72,3480.3,3479.4,3.2152]
[1719859693131,2.62435529,3480.2,3479.4,3.2152]
[1719859693343,0.53490087,3480.2,3479.4,3.2152]
[1719859693514,0.49749013,3480.1,3479.4,3.2152]
[1719859693698,0.03741074,3480.2,3479.4,4.424133]
[1719859694043,0.49748967,3480.1,3479.4,4.424133]
[1719859694193,0.03745484,3480.0,3479.4,4.424133]
[1719859694394,0.72,3480.3,3479.4,4.424133]
[1719859694598,0.72,3480.3,3479.4,2.4952]
[1719859694599,2.62440162,3480.2,3479.4,2.4952]
[1719859694799,0.72,3479.7,3479.3,3.0]
[1719859695022,0.03747476,3479.6,3479.3,3.0]
[1719859695226,0.72,3479.9,3479.3,3.0]
[1719859695435,0.03747192,3479.8,3479.3,3.0]
[1719859695641,0.72,3479.9,3479.3,4.120646]
[1719859695860,0.03747192,3479.8,3479.3,4.120646]
[1719859699116,0.03747192,3479.8,3479.3,3.0]
[1719859699818,0.72,3479.9,3479.3,3.0]
[1719859700028,0.49752968,3479.8,3479.3,3.0]
[1719859700340,0.03746339,3479.7,3479.3,3.0]
[1719859700851,0.72,3479.6,3479.3,3.0]
[1719859701023,0.35906339,3479.5,3479.3,3.0]
[1719859701214,0.03746339,3479.5,3479.3,3.0]
[1719859702018,2.496,3480.1,3479.3,3.0]
[1719859702214,0.72,3479.9,3479.3,3.0]
[1719859702424,0.72,3480.1,3479.4,2.4998]
[1719859702607,0.49752611,3479.8,3479.4,2.4998]
[1719859702808,0.49751966,3479.7,3479.4,2.4998]
[1719859703053,0.72,3480.1,3479.4,2.4998]
[1719859703208,0.53491764,3480.0,3479.4,2.4998]
[1719859703413,0.49750122,3479.9,3479.4,2.4998]
[1719859703909,0.53491764,3479.8,3479.4,2.4998]
[1719859704109,0.49750122,3479.7,3479.4,3.637209]
[1719859704426,0.49750122,3479.7,3479.4,3.69468259]
[1719859704733,0.72,3480.1,3479.4,3.69468259]
[1719859704734,0.72,3480.1,3479.4,3.637209]
[1719859704910,2.58712422,3480.0,3479.4,2.4998]
[1719859705112,0.49752374,3479.9,3479.4,2.4998]
[1719859705357,0.49752374,3479.8,3479.4,2.55727327]
[1719859705714,0.53493806,3479.7,3479.3,3.0]
[1719859706056,7.48,3480.4,3479.5,2.4929]
[1719859706057,0.72,3480.1,3479.5,2.4929]
[1719859706258,2.62417238,3480.0,3479.5,2.4929]
[1719859706408,0.49750271,3479.9,3479.3,3.0]
[1719859706613,0.49750271,3479.9,3479.3,3.9143]
[1719859707132,0.49750271,3480.0,3479.3,3.9143]
[1719859707340,2.08960335,3479.9,3479.3,3.9143]
[1719859707521,0.49750271,3479.8,3479.3,3.0]
[1719859707724,0.53466097,3479.8,3479.3,3.0]
[1719859707926,0.49750271,3479.7,3479.3,3.0]
[1719859708685,2.97890271,3479.8,3479.3,3.0]
[1719859708871,1.2175466,3479.7,3479.3,3.0]
[1719859709076,0.53471626,3479.6,3479.3,3.0]
[1719859709384,0.49754605,3479.5,3479.3,3.0]
[1719859709651,0.72,3479.9,3479.3,3.0]
[1719859709854,2.62436835,3479.8,3479.3,3.0]
[1719859710011,2.58719869,3479.7,3479.3,3.0]
[1719859710322,0.49753821,3479.6,3479.3,3.0]
[1719859710529,0.49753821,3479.5,3479.3,3.0]
[1719859711114,0.03716966,3479.4,3479.3,3.0]
[1719859711818,0.72,3479.9,3479.3,3.0]
[1719859712131,2.62440815,3479.8,3479.3,3.0]
[1719859712316,2.58723849,3479.7,3479.3,3.0]
[1719859712660,0.49754586,3479.6,3479.3,3.0]
[1719859712817,0.53471552,3479.5,3479.3,3.0]
[1719859713147,0.03716966,3479.5,3479.3,3.0]
[1719859713356,0.49753291,3479.4,3479.3,3.0]
[1719859713532,0.49753296,3479.4,3479.3,3.0]
[1719859713853,0.53470262,3479.4,3479.3,3.0]
[1719859714466,0.03716966,3479.4,3479.3,3.0]
[1719859714613,0.72,3480.0,3479.3,3.0]
[1719859714939,2.96113902,3479.9,3479.3,3.0]
[1719859715155,0.37399466,3479.9,3479.3,3.0]
[1719859715461,3.30718137,3479.8,3479.3,3.0]
[1719859715630,2.58718137,3479.7,3479.3,3.0]
[1719859715827,2.62435103,3479.6,3479.3,3.0]
[1719859716024,2.58718137,3479.5,3479.3,3.0]
[1719859716267,0.49753488,3479.4,3479.3,3.0]
[1719859716467,0.03716966,3479.4,3479.3,3.0]
[1719859716777,2.58728027,3479.4,3479.3,3.0]
[1719859716960,2.62444993,3479.4,3479.3,3.0]
[1719859718440,2.12689602,3479.4,3479.3,3.0]
[1719859718658,2.62445025,3479.4,3479.3,3.0]
[1719859718880,0.03716966,3479.4,3478.8,3.0]
[1719859719175,2.454,3479.3,3478.8,3.0]
[1719859719376,0.49755569,3479.2,3478.8,3.0]
[1719859719547,0.53470398,3479.2,3478.8,3.0]
[1719859719869,0.49755569,3479.1,3478.8,3.0]
[1719859720230,0.03714829,3479.0,3478.8,3.0]
[1719859720429,2.454,3479.3,3478.8,3.0]
[1719859720741,0.53469494,3479.2,3478.8,3.0]
[1719859720962,0.49761778,3479.1,3478.8,3.0]
[1719859721141,0.49761778,3479.0,3478.8,3.0]
[1719859721468,0.03707716,3478.9,3478.8,3.0]
[1719859721666,0.72,3479.4,3478.8,3.0]
[1719859721835,0.53469055,3479.3,3478.8,3.0]
[1719859722179,0.49761339,3479.2,3478.8,3.0]
[1719859722339,0.49761339,3479.1,3478.8,3.0]
[1719859722545,0.49761339,3479.0,3478.8,3.0]
[1719859722758,0.03700176,3479.1,3478.8,3.0]
[1719859722961,0.36985,3479.4,3478.8,3.0]
[1719859723174,0.03700176,3479.0,3478.8,3.0]
[1719859723349,0.72,3479.5,3478.8,3.0]
[1719859723548,0.03700176,3478.9,3478.8,3.0]
[1719859723762,0.72,3479.5,3478.8,3.0]
[1719859723965,0.03700176,3478.9,3478.8,3.0]
[1719859724585,0.72,3479.5,3478.8,3.0]
[1719859724755,0.03700176,3478.9,3478.8,3.0]
[1719859724940,0.72,3479.5,3478.8,3.0]
[1719859725274,1.08985,3479.5,3478.8,3.0]
[1719859725478,0.03700176,3479.4,3478.8,3.0]
[1719859726535,0.72,3479.3,3478.8,3.0]
[1719859727078,0.03701599,3479.2,3478.8,3.0]
[1719859727287,0.72,3479.3,3478.8,3.0]
[1719859727451,0.03701599,3479.2,3478.8,3.0]
[1719859727853,0.36985,3479.5,3478.8,3.0]
[1719859728179,0.75698753,3479.4,3478.8,3.0]
[1719859730755,1.16752128,3479.4,3478.8,3.0]
[1719859732032,0.72,3479.2,3478.8,3.0]
[1719859732177,0.49762784,3479.1,3478.8,3.0]
[1719859732377,0.53458833,3479.1,3478.8,3.0]
[1719859732575,0.49762784,3479.0,3478.8,3.0]
[1719859733217,0.03696049,3478.9,3478.8,3.0]
[1719859733713,0.03693914,3478.9,3478.8,3.0]
[1719859734086,0.72,3479.4,3478.8,3.0]
[1719859734290,0.53456759,3479.3,3478.8,3.0]
[1719859734492,0.49762845,3479.2,3478.8,3.0]
[1719859734692,0.49762845,3479.1,3478.8,3.0]
[1719859734904,0.53456759,3479.0,3478.8,3.0]
[1719859735225,0.03693914,3479.0,3478.8,3.0]
[1719859735519,0.72,3479.4,3478.8,3.0]
[1719859735710,0.03693914,3478.9,3478.8,3.0]
[1719859735882,0.72,3479.4,3478.8,3.0]
[1719859736085,0.5345508,3479.3,3478.8,3.0]
[1719859736418,0.49761506,3479.2,3478.8,3.0]
[1719859736620,0.03693914,3479.3,3478.8,3.0]
[1719859736826,0.49761511,3479.2,3478.8,3.0]
[1719859736973,0.03693914,3479.2,3478.8,3.61356]
[1719859737178,0.49761511,3479.1,3478.9,2.368885]
[1719859737420,3.1352,3479.9,3478.9,3.08888224]
[1719859737618,0.49756535,3479.8,3479.0,0.67024422]
[1719859737939,0.49756535,3479.7,3479.1,0.05747928]
[1719859738286,0.49756535,3479.6,3479.1,0.05747928]
[1719859738624,2.4152,3480.1,3479.1,0.05747928]
[1719859738625,0.53451729,3479.5,3479.2,3.0]
[1719859738838,0.03695194,3479.5,3479.3,3.40417235]
[1719859739036,0.72,3480.3,3479.4,0.0574729]
[1719859739241,0.53449462,3480.2,3479.4,0.0574729]
[1719859739538,0.49749144,3480.1,3479.7,2.3114]
[1719859739697,0.03700318,3480.2,3479.7,2.3114]
[1719859739899,0.49748695,3480.0,3479.7,2.3114]
[1719859740108,0.49748695,3479.9,3479.7,2.3114]
[1719859740352,0.49748695,3480.2,3479.6,3.0]
[1719859740515,0.49748695,3479.8,3479.6,3.0]
[1719859740834,0.49748695,3479.7,3479.6,3.0]
[1719859741031,0.49748695,3479.9,3479.6,3.0]
[1719859741349,0.72,3479.8,3479.6,3.0]
[1719859741513,0.75704871,3479.8,3479.1,3.0]
[1719859741701,0.49748695,3479.7,3479.1,3.0]
[1719859742138,0.49748695,3479.7,3479.5,3.0]
[1719859742434,0.36697357,3479.8,3479.5,3.0]
[1719859742742,3.1352,3480.1,3479.5,3.0]
[1719859742743,0.72,3480.1,3479.5,5.2931]
[1719859742899,0.03708145,3479.7,3479.5,5.2931]
[1719859743101,0.72,3480.1,3479.5,5.2931]
[1719859743398,0.53460834,3480.0,3479.5,3.0]
[1719859743719,0.49752689,3479.9,3479.5,3.0]
[1719859744397,0.03708145,3479.8,3479.5,3.0]
[1719859744597,0.49752689,3479.7,3479.5,3.0]
[1719859745225,0.72,3480.1,3479.5,3.0]
[1719859745428,0.49753369,3480.0,3479.5,3.0]
[1719859745600,0.49753369,3479.9,3479.5,3.0]
[1719859745801,0.72,3479.7,3479.1,3.0]
[1719859746098,0.85039706,3479.6,3479.1,3.0]
[1719859746438,0.49753369,3479.5,3479.1,3.0]
[1719859747131,0.49753369,3479.6,3479.1,3.0]
[1719859747439,0.72,3479.9,3479.1,3.0]
[1719859747598,0.49753614,3479.8,3479.1,3.0]
[1719859747799,0.49753614,3479.7,3479.1,3.0]
[1719859748040,0.49753614,3479.6,3479.1,3.0]
[1719859748344,0.03708429,3479.5,3479.1,3.0]
[1719859748717,1.0403,3479.9,3479.1,3.0]
[1719859749041,0.53461662,3479.8,3479.1,3.0]
[1719859749234,0.49753233,3479.7,3479.1,3.0]
[1719859749402,0.03708429,3479.8,3479.1,3.05747842]
[1719859749602,0.49751512,3479.7,3479.1,3.05747842]
[1719859749802,0.03708429,3479.7,3479.1,3.05747842]
[1719859750238,1.0403,3479.9,3479.1,3.05747842]
[1719859750420,0.03708429,3479.6,3479.1,3.0]
[1719859750638,1.0403,3479.9,3479.1,3.0]
[1719859750797,0.03708429,3479.5,3479.1,3.0]
[1719859751000,1.0403,3479.9,3479.1,3.0]
[1719859751238,0.03708429,3479.4,3479.1,3.0]
[1719859751397,1.0403,3479.9,3479.1,3.0]
[1719859751603,0.49753468,3479.8,3479.2,0.0574789]
[1719859751814,0.49753658,3479.7,3479.3,2.3771]
[1719859752034,0.49753658,3479.6,3479.3,2.3771]
[1719859752255,0.3203,3479.9,3479.3,2.3771]
[1719859752573,0.03708429,3479.5,3479.3,2.3771]
[1719859752744,0.49752458,3479.8,3479.3,2.3771]
[1719859752907,0.03708429,3479.4,3479.3,2.3771]
[1719859753106,0.72,3480.0,3479.3,2.3771]
[1719859753303,0.53462302,3479.9,3479.3,2.3771]
[1719859753505,0.49753873,3479.8,3479.3,2.3771]
[1719859753705,0.49753873,3479.7,3479.3,2.3771]
[1719859753918,0.03708429,3479.7,3479.3,2.43457616]
[1719859754115,0.72,3480.2,3479.3,3.69228616]
[1719859754338,0.49751681,3480.1,3479.3,3.69228616]
[1719859754542,0.49751681,3480.0,3479.6,3.0]
[1719859754767,0.49751681,3479.9,3479.7,2.2653]
[1719859754983,0.72,3480.7,3479.7,2.9853]
[1719859755254,0.72,3480.7,3479.6,3.66922862]
[1719859755255,0.49745484,3480.6,3480.1,2.2653]
[1719859755469,3.08175712,3481.0,3480.1,2.2653]
[1719859755470,0.49745484,3480.5,3480.1,2.2653]
[1719859755636,0.49745484,3480.4,3480.1,2.2653]
[1719859755834,0.03708572,3480.5,3480.1,2.2653]
[1719859756068,0.03711132,3480.3,3480.1,2.2653]
[1719859756355,0.03711132,3480.2,3480.1,2.2653]
[1719859756729,1.26433571,3480.9,3480.1,2.2653]
[1719859756941,0.53454093,3480.8,3480.1,2.2653]
[1719859757148,0.49742961,3480.7,3480.1,2.2653]
[1719859757935,0.53453689,3480.6,3480.1,2.2653]
[1719859758229,0.49742557,3480.5,3480.1,2.2653]
[1719859758827,0.03711132,3480.4,3480.1,2.2653]
[1719859759134,0.72,3480.8,3480.1,2.2653]
[1719859759339,0.53452381,3480.7,3480.1,2.2653]
[1719859759635,0.03711132,3480.7,3480.1,2.3227645]
[1719859760018,0.72,3481.1,3480.1,2.3227645]
[1719859760259,0.03711132,3480.6,3480.1,2.3227645]
[1719859760436,1.02816,3481.1,3480.1,2.3227645]
[1719859760634,0.03711132,3480.5,3480.1,2.3227645]
[1719859760944,0.03711132,3480.4,3480.1,2.3227645]
[1719859761345,1.02816,3481.1,3480.1,2.3227645]
[1719859761556,0.83636541,3481.0,3480.1,2.3227645]
[1719859761739,0.49738941,3480.9,3480.1,2.3227645]
[1719859762144,0.03711132,3480.8,3480.1,2.3227645]
[1719859762356,0.49738941,3480.7,3480.1,2.2653]
[1719859762927,0.03711132,3480.6,3480.1,2.2653]
[1719859763130,0.72,3480.9,3480.1,2.2653]
[1719859763352,0.5345163,3480.8,3480.1,2.2653]
[1719859763674,0.49740498,3480.7,3480.1,2.2653]
[1719859764146,0.03711132,3480.6,3480.1,2.2653]
[1719859764721,0.72,3480.9,3480.1,3.67556744]
[1719859764928,0.53452858,3480.8,3480.1,3.67556744]
[1719859765135,0.49741726,3480.7,3480.1,3.67556744]
[1719859765362,0.49741726,3480.6,3480.1,3.67556744]
[1719859765565,0.03711132,3480.6,3480.3,0.72]
[1719859765766,0.03711132,3480.6,3480.3,0.05746031]
[1719859765972,3.0816,3481.2,3480.3,0.05746031]
[1719859766270,0.03734032,3480.5,3480.1,2.9853]
[1719859766429,0.72,3481.0,3480.1,2.9853]
[1719859766628,0.03735881,3480.4,3480.2,0.05746038]
[1719859766961,0.72,3481.0,3480.2,0.05746038]
[1719859767165,0.89136919,3480.9,3480.2,0.05746038]
[1719859767326,0.43133481,3480.9,3480.2,0.05746038]
[1719859767526,0.49738963,3480.8,3480.2,0.05746038]
[1719859767831,0.49738963,3480.7,3480.2,0.05746038]
[1719859768162,0.03735881,3480.7,3480.2,0.05746038]
[1719859768665,0.393976,3480.9,3480.2,0.05746038]
[1719859768877,0.03735881,3480.6,3480.2,0.05746038]
[1719859769037,0.393976,3480.9,3480.2,0.05746038]
[1719859769238,0.03735881,3480.5,3480.2,0.05746038]
[1719859769547,0.03735881,3480.4,3480.1,2.9853]
[1719859769754,0.393976,3480.9,3480.2,0.05746049]
[1719859770056,0.66379156,3480.8,3480.2,0.05746042]
[1719859770270,0.49739396,3480.7,3480.2,0.05746042]
[1719859770453,0.49739396,3480.6,3480.2,0.05746042]
[1719859770649,0.1663976,3480.8,3480.2,0.05746042]
[1719859770855,0.03610498,3480.5,3480.2,0.05746042]
[1719859771041,0.1663976,3480.8,3480.2,0.05746042]
[1719859771271,0.03610498,3480.4,3480.2,0.05746042]
[1719859771578,0.1663976,3480.8,3480.2,0.05746042]
[1719859771739,0.49738944,3480.7,3480.2,0.05746042]
[1719859772085,0.03610498,3480.6,3480.2,0.05746042]
[1719859772442,0.1663976,3480.8,3480.2,0.05746042]
[1719859772680,0.03610498,3480.5,3480.2,0.05746042]
[1719859772884,0.1663976,3480.8,3480.2,0.05746042]
[1719859773185,0.49738891,3480.7,3480.2,0.05746042]
[1719859773488,0.0361064,3480.7,3480.2,0.05746042]
[1719859774771,0.393976,3480.9,3480.2,0.05746042]
[1719859774949,0.0361064,3480.6,3480.2,0.05746042]
[1719859775157,0.393976,3480.9,3480.2,0.05746042]
[1719859775352,0.53349275,3480.8,3480.2,0.05746042]
[1719859775568,0.49738635,3480.7,3480.2,0.05746042]
[1719859776079,0.0361064,3480.6,3480.2,0.05746042]
[1719859776450,0.393976,3480.9,3480.2,0.05746042]
[1719859776685,0.0361064,3480.5,3480.2,0.05746042]
[1719859776888,0.1663976,3480.8,3480.2,0.05746042]
[1719859777084,0.0361064,3480.4,3480.2,0.05746042]
[1719859777385,0.1663976,3480.8,3480.2,0.05746042]
[1719859777680,0.49738713,3480.7,3480.2,0.05746042]
[1719859777883,0.49738713,3480.6,3480.2,0.05746042]
[1719859778264,0.03494917,3480.5,3480.1,2.2653]
[1719859778677,0.03494917,3480.5,3480.2,0.77746072]
[1719859778877,0.72,3481.3,3480.4,0.72]
[1719859779100,2.58633264,3481.0,3480.4,0.72]
[1719859779301,2.58633264,3481.0,3480.3,0.05746054]
[1719859779302,2.58633264,3480.9,3480.3,0.05746054]
[1719859779458,0.49737166,3480.9,3480.3,0.05746054]
[1719859779653,0.49737166,3480.8,3480.3,0.05746054]
[1719859779902,0.72,3481.3,3480.3,0.05746054]
[1719859779903,0.49737166,3480.7,3480.3,0.05746054]
[1719859780258,0.49737334,3480.6,3480.3,0.05746054]
[1719859780501,0.91316,3481.1,3480.2,0.77746068]
[1719859780687,2.5863194,3481.0,3480.3,0.05746049]
[1719859780889,2.5863194,3480.9,3480.3,0.05746049]
[1719859781191,0.49736911,3480.8,3480.3,0.05746049]
[1719859781493,0.49736911,3480.7,3480.3,0.05746049]
[1719859781654,0.49736911,3480.9,3480.3,0.05746049]